Workbook

Sheet Database
A1: Database
A2: DAVERAGE | B2: =DAVERAGE(A24:E30,D2,A19:C21) -> 11.66666667 | D2: 3
A3: DCOUNT | B3: =DCOUNT(A24:E30,D2,A19:C21) -> 3
A4: DCOUNTA | B4: =DCOUNTA(A24:E30,D2,A19:C21) -> 3
A5: DGET | B5: =DGET(A24:E30,D2,A19:C20) -> 15
A6: DMAX | B6: =DMAX(A24:E30,D2,A19:C21) -> 15
A7: DMIN | B7: =DMIN(A24:E30,D2,A19:C21) -> 8
A8: DPRODUCT | B8: =DPRODUCT(A24:E30,D2,A19:C21) -> 1440
A9: DSTDEV | B9: =DSTDEV(A24:E30,D2,A19:A21) -> 5.057996968
A10: DSTDEVP | B10: =DSTDEVP(A24:E30,D2,A19:A21) -> 4.380353867
A11: DSUM | B11: =DSUM(A24:E30,D2,A19:C21) -> 35 | D11: =B11-B2*B3 -> 0
A12: DVAR | B12: =DVAR(A24:E30,D2,A19:C21) -> 12.33333333
A13: DVARP | B13: =DVARP(A24:E30,D2,A19:C21) -> 8.222222222
A15: Pivot Table
A16: GETPIVOTDATA | B16: =GETPIVOTDATA("Sum of Qux",B32) -> 57
A18: Conditions
A19: Foo | B19: Bar | C19: Bar
A20: V8 | B20: >10 | C20: <16
A21: SM
A23: Data
A24: Foo | B24: Bar | C24: Baz | D24: Qux | E24: Sna
A25: V8 | B25: 18 | C25: 20 | D25: 14 | E25: 105
A26: SM | B26: 12 | C26: 12 | D26: 10 | E26: 96
A27: Nitro | B27: 13 | C27: 14 | D27: 9 | E27: 105
A28: V8 | B28: 14 | C28: 15 | D28: 10 | E28: 75
A29: SM | B29: 9 | C29: 8 | D29: 8 | E29: 76.8
A30: V* | B30: 8 | C30: 9 | D30: 6 | E30: 45
B32: Sum of Qux | C32: Column Labels
C33: 8 | D33: 8 Total | E33: 9 | F33: 9 Total | G33: 12 | H33: 12 Total | I33: 13 | J33: 13 Total | K33: 14 | L33: 14 Total | M33: 18 | N33: 18 Total | O33: Grand Total
B34: Row Labels | C34: 45 | E34: 76.8 | G34: 96 | I34: 105 | K34: 75 | M34: 105
B35: Nitro | I35: 9 | J35: 9 | O35: 9
B36: 14 | I36: 9 | J36: 9 | O36: 9
B37: SM | E37: 8 | F37: 8 | G37: 10 | H37: 10 | O37: 18
B38: 8 | E38: 8 | F38: 8 | O38: 8
B39: 12 | G39: 10 | H39: 10 | O39: 10
B40: V* | C40: 6 | D40: 6 | O40: 6
B41: 9 | C41: 6 | D41: 6 | O41: 6
B42: V8 | K42: 10 | L42: 10 | M42: 14 | N42: 14 | O42: 24
B43: 15 | K43: 10 | L43: 10 | O43: 10
B44: 20 | M44: 14 | N44: 14 | O44: 14
B45: Grand Total | C45: 6 | D45: 6 | E45: 8 | F45: 8 | G45: 10 | H45: 10 | I45: 9 | J45: 9 | K45: 10 | L45: 10 | M45: 14 | N45: 14 | O45: 57

Sheet Date
A1: Core
A2: DATE | B2: =DATE(C2,D2,E2) -> 2013-06-09 | C2: 2013 | D2: 6 | E2: 9
A3: DATEVALUE | B3: =DATEVALUE(C3) -> 25363 | C3: June 9, 1969
A4: TIME | B4: =TIME(C4,D4,E4) -> 06:09:23 | C4: 6 | D4: 9 | E4: 23
A5: TIMEVALUE | B5: =TIMEVALUE(C5) -> 0.9748263889 | C5: 11:23:45 PM
A6: NOW | B6: =NOW() -> 2013-05-05T21:06:01.510
A7: TODAY | B7: =TODAY() -> 2013-05-05
A9: Field Extraction
A10: YEAR | B10: =YEAR(B2) -> 2013
A11: MONTH | B11: =MONTH(B2) -> 6
A12: DAY | B12: =DAY(B2) -> 9
A13: HOUR | B13: =HOUR(B4) -> 6
A14: MINUTE | B14: =MINUTE(B4) -> 9
A15: SECOND | B15: =SECOND(B4) -> 23
A16: WEEKDAY | B16: =WEEKDAY(B2) -> 1
A17: WEEKNUM | B17: =WEEKNUM(B2) -> 24
A19: Relative
A20: DATEDIF | B20: =DATEDIF(C20,D20,E20) -> 395 | C20: =B2 -> 2013-06-09 | D20: 2014-07-09 | E20: D
A21: DAYS360 | B21: =DAYS360(C20,D20) -> 390
A22: EDATE | B22: =EDATE(B2,C22) -> 41526 | C22: 3
A23: EOMONTH | B23: =EOMONTH(B2,C23) -> 41547 | C23: 3
A24: NETWORKDAYS | B24: =NETWORKDAYS(C20,D20) -> 283
A25: NETWORKDAYS.INTL | B25: =NETWORKDAYS.INTL(C20,D20,C25) -> 340 | C25: 17
A26: WORKDAY | B26: =WORKDAY(C20,C26) -> 41605 | C26: 123
A27: WORKDAY.INTL | B27: =WORKDAY.INTL(C20,123,17) -> 41577
A28: YEARFRAC | B28: =YEARFRAC(C20,D20) -> 1.083333333

Sheet Engineering
A1: Bessel | C1: * FACTDOUBLE moved to Math
A2: BESSELI | B2: =BESSELI(C2,D2) -> 0.2127399597 | C2: 2 | D2: 3 | E2: =BESSELI(-1,-1) -> 
A3: BESSELJ | B3: =BESSELJ(C3,D3) -> 0.12894325 | C3: 2 | D3: 3
A4: BESSELK | B4: =BESSELK(C4,D4) -> 0.6473854 | C4: 2 | D4: 3
A5: BESSELY | B5: =BESSELY(C5,D5) -> -1.127783765 | C5: 2 | D5: 3
A7: Error Function
A8: ERF | B8: =BESSELI(C8,D8) -> 1
A9: ERF.PRECISE | B9: =BESSELI(C9,D9) -> 1
A10: ERFC | B10: =BESSELI(C10,D10) -> 1
A11: ERFC.PRECISE | B11: =BESSELI(C11,D11) -> 1
A13: Conversion
A14: CONVERT | B14: =CONVERT(C14,D14,E14) -> -273.15 | C14: 0 | D14: K | E14: C
A15: BIN2DEC | B15: =BIN2DEC(10) -> 2
A16: BIN2HEX | B16: =BIN2HEX(10) -> 2
A17: BIN2OCT | B17: =BIN2OCT(10) -> 2
A18: DEC2BIN | B18: =DEC2BIN(10) -> 1010
A19: DEC2HEX | B19: =DEC2HEX(10) -> A
A20: DEC2OCT | B20: =DEC2OCT(10) -> 12
A21: OCT2BIN | B21: =OCT2BIN(10) -> 1000
A22: OCT2DEC | B22: =OCT2DEC(10) -> 8
A23: OCT2HEX | B23: =OCT2HEX(10) -> 8
A24: HEX2BIN | B24: =HEX2BIN(10) -> 10000
A25: HEX2DEC | B25: =HEX2DEC(10) -> 16
A26: HEX2OCT | B26: =HEX2OCT(10) -> 20
A28: Dirac and Heaviside
A29: DELTA | B29: =DELTA(5) -> 0
A30: GESTEP | B30: =GESTEP(5) -> 1
A32: Complex
A33: COMPLEX | B33: =COMPLEX(2,3) -> 2+3i | C33: =COMPLEX(2,3,"j") -> 2+3j
A34: IMABS | B34: =IMABS(C34) -> 3.605551275 | C34: 2+3j
A35: IMAGINARY | B35: =IMAGINARY(C35) -> 3 | C35: 2+3j
A36: IMARGUMENT | B36: =IMARGUMENT(C36) -> 0.9827937232 | C36: 2+3j
A37: IMCONJUGATE | B37: =IMCONJUGATE(C37) -> 2-3j | C37: 2+3j
A38: IMCOS | B38: =IMCOS(C38) -> -4.18962569096881-9.10922789375534j | C38: 2+3j
A39: IMDIV | B39: =IMDIV(B43,B42) -> 3.32192809488737-8.28846662730513E-15j | C39: 2+3j
A40: IMEXP | B40: =IMEXP(C40) -> -7.3151100949011+1.0427436562359j | C40: 2+3j
A41: IMLN | B41: =IMLN(C41) -> 1.28247467873077+0.982793723247329j | C41: 2+3j
A42: IMLOG10 | B42: =IMLOG10(C42) -> 0.556971676153418+0.426821890855467j | C42: 2+3j
A43: IMLOG2 | B43: =IMLOG2(C43) -> 1.85021985907055+1.41787163074572j | C43: 2+3j
A44: IMPOWER | B44: =IMPOWER(C44,2) -> -5+12j | C44: 2+3j
A45: IMPRODUCT | B45: =IMPRODUCT(C45,D45) -> -10+24j | C45: 2+3j | D45: =COMPLEX(4,6,"j") -> 4+6j
A46: IMREAL | B46: =IMREAL(C46) -> 2 | C46: 2+3j
A47: IMSIN | B47: =IMSIN(C47) -> 9.15449914691143-4.16890695996656j | C47: 2+3j
A48: IMSQRT | B48: =IMSQRT(C48) -> 1.67414922803554+0.895977476129838j | C48: 2+3j
A49: IMSUB | B49: =IMSUB(C49,D49) -> -2-2j | C49: 2+3j | D49: =COMPLEX(4,5,"j") -> 4+5j
A50: IMSUM | B50: =IMSUM(C33:D50) -> 48+70j | C50: 2+3j | D50: =COMPLEX(4,5,"j") -> 4+5j

Sheet Finance
A1: Conversion
A2: DOLLARDE | B2: =DOLLARDE(D2,E2) -> 1.125 | D2: 1.02 | E2: 16
A3: DOLLARFR | B3: =DOLLARFR(B2,E2) -> 1.02
A4: EFFECT | B4: =EFFECT(D4,E4) -> 0.05354266737 | D4: 5.25% | E4: 4
A5: NOMINAL | B5: =NOMINAL(B4,E4) -> 0.0525
A7: Cash Flows
A8: IRR | B8: =IRR(D8:I8,0.1) -> 9% | D8: -70000 | E8: 12000 | F8: 15000 | G8: 18000 | H8: 21000 | I8: 26000
A9: MIRR | B9: =MIRR(D9:I9,J9,K9) -> 13% | D9: -120000 | E9: 39000 | F9: 30000 | G9: 21000 | H9: 37000 | I9: 46000 | J9: 10% | K9: 12%
A10: NPV | B10: =NPV(D10,E10,F10,G10,H10) -> $1,188.44 | D10: 10% | E10: -10000 | F10: 3000 | G10: 4200 | H10: 6800
A11: XIRR | B11: =XIRR(E10:H10,E11:H11) -> 5.315237761 | E11: 2013-01-01 | F11: 2013-02-01 | G11: 2013-03-01 | H11: 2013-04-01
A12: XNPV | B12: =XNPV(B11,E10:H10,E11:H11) -> -6.211546861e-06
A13: FVSCHEDULE | B13: =FVSCHEDULE(1,{0.09,0.11,0.1}) -> 1.33089 | C13: =FVSCHEDULE(1,D13:F13) -> 1.33089 | D13: 0.09 | E13: 0.11 | F13: 0.1
A15: Annuities | D15: rate | E15: nper | F15: pmt | G15: pv
A16: FV | B16: =FV(D16/12,E16,F16,G16,1) -> $2,581.40 | D16: 6% | E16: 10 | F16: -200 | G16: -500
A17: IPMT | B17: =IPMT(D17/12,3,E17,G17) -> ($22.41) | D17: 10% | E17: 3 | G17: 8000
A18: ISPMT | B18: =ISPMT(D18/12,1,E18*12,G18) -> ($64.81) | D18: 10% | E18: 3 | G18: 8000
A19: NPER | B19: =NPER(D19/12,F19,G19) -> -9.57859404 | D19: 12% | F19: -100 | G19: -1000
A20: PMT | B20: =PMT(D17/12,E17,G17) -> ($2,711.23)
A21: PPMT | B21: =PPMT(D17/12,3,E17,G17) -> ($2,688.83)
A22: PV | B22: =PV(D22/12,12*E22,F22) -> ($59,777.15) | D22: 8% | E22: 20 | F22: 500
A23: RATE | B23: =RATE(E23*12,F23,G23)*12 -> 9% | E23: 4 | F23: -200 | G23: 8000
A24: CUMIPMT | B24: =CUMIPMT(D24/12,E24*12,F24,G24,H24,0) -> -11135.23213 | D24: 9% | E24: 30 | F24: 125000 | G24: 13 | H24: 24
A25: CUMPRINC | B25: =CUMPRINC(D24/12,E24*12,F24,G24,H24,0) -> -934.1071234
A27: Securities | D27: settlement | E27: maturity | F27: discount | G27: pr | H27: redemption
A28: TBILLEQ | B28: =TBILLEQ(D29,E29,F28) -> 0.09415149357 | F28: 9.14%
A29: TBILLPRICE | B29: =TBILLPRICE(D29,E29,F29) -> 98.45 | D29: 2008-03-31 | E29: 2008-06-01 | F29: 9% | G29: 98.45
A30: TBILLYIELD | B30: =TBILLYIELD(D29,E29,G29) -> 0.09141696293
A31: PRICE | B31: =PRICE(D31,E31,F31,G31,H31,I31) -> 94.63436162 | D31: 2008-02-15 | E31: 2017-11-15 | F31: 5.75% | G31: 6.50% | H31: 100 | I31: 2
A32: YIELD | B32: =YIELD(D32,E32,F32,G32,H32,I32) -> 0.06500000688 | D32: 2008-02-15 | E32: 2016-11-15 | F32: 5.75% | G32: 95.04287 | H32: 100 | I32: 2
A33: DISC | B33: =DISC(D33,E33,G33,H33) -> 0.05207142857 | D33: 2007-01-25 | E33: 2007-06-15 | G33: 97.975 | H33: 100
A34: PRICEDISC | B34: =PRICEDISC(D34,E34,F34,H34,SQRT(4)) -> 99.79583333 | D34: 2008-02-16 | E34: 2008-03-01 | F34: 5.25% | H34: 100
A35: YIELDDISC | B35: =YIELDDISC(D34,E34,G35,H34,LOG(100)/LOG(10)) -> 0.05282257199 | G35: 99.795
A36: PRICEMAT | B36: =PRICEMAT(D36,E36,F36,G36,G36,H36) -> 99.98449888 | D36: 2008-02-15 | E36: 2008-04-13 | F36: 2007-11-11 | G36: 6.10% | H36: 00:00:00
A37: YIELDMAT | B37: =YIELDMAT(D37,E37,F37,G37,H37,I37) -> 0.06095433369 | D37: 2008-03-15 | E37: 2008-11-03 | F37: 2007-11-08 | G37: 6.25% | H37: 100.0123 | I37: 0
A38: DURATION | B38: =DURATION(D38,E38,F38,G38,H38,I38) -> 5.993774956 | D38: 2008-01-01 | E38: 2016-01-01 | F38: 8% | G38: 9% | H38: 2 | I38: 1
A39: MDURATION | B39: =MDURATION(D38,E38,F38,G38,H38,I38) -> 5.735669814
A40: ACCRINT | B40: =ACCRINT(D40,E40,F40,G40,H40,I40,J40) -> 16.66666667 | D40: 2008-03-01 | E40: 2008-08-31 | F40: 2008-05-01 | G40: 10% | H40: 1000 | I40: 2 | J40: 0
A41: ACCRINTM | B41: =ACCRINTM(D41,E41,G41,H41,I41) -> 20.54794521 | D41: 2008-04-01 | E41: 2008-06-15 | G41: 10% | H41: 1000 | I41: 3
A42: INTRATE | B42: =INTRATE(D42,E42,F42,G42,H42) -> 0.05768 | D42: 2008-02-15 | E42: 2008-05-15 | F42: 1000000 | G42: 1014420 | H42: 2
A43: RECEIVED | B43: =RECEIVED(D43,E43,F43,G43,H43) -> 1014584.654 | D43: 2008-02-15 | E43: 2008-05-15 | F43: 1000000 | G43: 5.75% | H43: 2
A44: ODDFPRICE | B44: =ODDFPRICE(D44,E44,F44,G44,H44,I44,J44,K44,L44) -> 113.5977175 | D44: 2008-11-11 | E44: 2021-03-01 | F44: 2008-10-15 | G44: 2009-03-01 | H44: 7.85% | I44: 6.25% | J44: 100 | K44: 2 | L44: 1
A45: ODDFYIELD | B45: =ODDFYIELD(D45,E45,F45,G45,H45,I45,J45,K45,L45) -> 0.0772455416 | D45: 2008-11-11 | E45: 2021-03-01 | F45: 2008-10-15 | G45: 2009-03-01 | H45: 5.75% | I45: 84.5 | J45: 100 | K45: 2 | L45: 0
A46: ODDLPRICE | B46: =ODDLPRICE(D46,E46,F46,G46,H46,I46,J46,K46) -> 110.8828691 | D46: 2008-11-11 | E46: 2021-03-01 | F46: 2008-10-15 | G46: 7.85% | H46: 6.25% | I46: 100 | J46: 2 | K46: 0
A47: ODDLYIELD | B47: =ODDLYIELD(D47,E47,F47,G47,H47,I47,J47,K47) -> 0.08254808631 | D47: 2008-11-11 | E47: 2021-03-01 | F47: 2008-10-15 | G47: 5.75% | H47: 84.5 | I47: 100 | J47: 2 | K47: 0
A48: COUPDAYBS | B48: =COUPDAYBS(D48,E48,F48,G48) -> 71 | D48: =DATE(2007,1,25) -> 2007-01-25 | E48: =DATE(2008,11,15) -> 2008-11-15 | F48: 2 | G48: 1
A49: COUPDAYS | B49: =COUPDAYS(D48,E48,F48,G48) -> 181
A50: COUPDAYSNC | B50: =COUPDAYSNC(D48,E48,F48,G48) -> 110
A51: COUPNCD | B51: =COUPNCD(D48,E48,F48,G48) -> 2007-05-15
A52: COUPNUM | B52: =COUPNUM(D48,E48,F48,G48) -> 4
A53: COUPPCD | B53: =COUPPCD(D48,E48,F48,G48) -> 39036
A55: Depreciation | D55: cost | E55: salvage | F55: life | G55: period
A56: DB | B56: =DB(D56,E56,F56,G56,H56) -> $55,841.76 | D56: 1000000 | E56: 100000 | F56: 6 | G56: 6 | H56: 7
A57: DDB | B57: =DDB(D57,E57,F57*365,G57) -> $1.31 | D57: 2400 | E57: 300 | F57: 10 | G57: 2
A58: SLN | B58: =SLN(D59,E59,F59) -> $2,250.00
A59: SYD | B59: =SYD(D59,E59,F59,G59) -> $409.09 | D59: 30000 | E59: 7500 | F59: 10 | G59: 10
A60: VDB | B60: =VDB(D57,E57,F57*365,5,9) -> $5.24 | D60: cost | E60: salvage | F60: rate | G60: period | H60: datepurc | I60: datefirst
A61: AMORDEGRC | B61: =AMORDEGRC(D62,H62,I62,E62,G62,F62) -> 767
A62: AMORLINC | B62: =AMORLINC(D62,H62,I62,E62,G62,F62) -> 360 | D62: 2400 | E62: 300 | F62: 15% | G62: 1 | H62: 2008-08-09 | I62: 2008-12-31

Sheet Information
A1: CELL | B1: =CELL(C1,D1) -> $D$1 | C1: address
A2: ERROR.TYPE | B2: =ERROR.TYPE(#VALUE!) -> 3 | C2: =0/0 -> 
A3: INFO | B3: =INFO(C3) -> 14.3 | C3: release
A4: ISBLANK | B4: =ISBLANK(C4) -> TRUE
A5: ISERR | B5: =ISERR(C5) -> FALSE
A6: ISERROR | B6: =ISERROR(C2) -> TRUE
A7: ISEVEN | B7: =ISEVEN(C7) -> FALSE | C7: 7
A8: ISLOGICAL | B8: =ISLOGICAL(C8) -> TRUE | C8: TRUE
A9: ISNA | B9: =ISNA(C9) -> TRUE | C9: =NA() -> 
A10: ISNONTEXT | B10: =ISNONTEXT(C10) -> TRUE | C10: 3
A11: ISNUMBER | B11: =ISNUMBER(C11) -> FALSE | C11: 3
A12: ISODD | B12: =ISODD(C12) -> TRUE | C12: 3
A13: ISREF | B13: =ISREF("address") -> FALSE | C13: A5
A14: ISTEXT | B14: =ISTEXT(C14) -> FALSE | C14: 3
A15: N | B15: =N(C15) -> 1 | C15: TRUE
A16: NA | B16: =NA() -> 
A17: TYPE | B17: =TYPE({1,2;3,4}) -> 64

Sheet Logical
A1: Singletons
A2: FALSE | B2: =FALSE() -> FALSE
A3: TRUE | B3: =TRUE() -> TRUE
A5: Operators
A6: AND | B6: =AND(C6,D6) -> FALSE | C6: TRUE | D6: FALSE
A7: NOT | B7: =NOT(C6) -> FALSE
A8: OR | B8: =OR(C6,D6) -> TRUE
A10: Conditionals
A11: IF | B11: =IF(B8,C11,D11) -> 123 | C11: 123 | D11: 456
A12: IFERROR | B12: =IFERROR(C12,D12) -> 456 | C12: =0/0 ->  | D12: 456

Sheet Lookup
A1: Reference Info
A2: COLUMN | B2: =COLUMN(C2) -> 3
A3: ROW | B3: =ROW(C3) -> 3
A4: COLUMNS | B4: =COLUMNS(A10:D21) -> 4
A5: ROWS | B5: =ROWS(A10:D21) -> 12
A6: INDIRECT | B6: =INDIRECT(C6) -> ADDRESS | C6: A10
A7: AREAS | B7: =AREAS((B7:D14,E2,F4:H16)) -> 3
A9: Relative
A10: ADDRESS | B10: =ADDRESS(2,2) -> $B$2
A11: OFFSET | B11: =OFFSET(C11,D11,E11) -> 0 | C11: C14 | D11: -1 | E11: 0
A13: Lookup
A14: CHOOSE | B14: =CHOOSE(C14,A10,A7,A14,#REF!,A2,A4,A15,A23,A16,A17) -> CHOOSE | C14: 3
A15: HLOOKUP | B15: =HLOOKUP(C15,A10:C21,10,FALSE) -> LOOKUP (arr) | C15: ADDRESS
A16: INDEX (ref) | B16: =INDEX(A1:D21,C16,D16) -> ADDRESS | C16: 6 | D16: 2
A17: INDEX (arr) | B17: =INDEX({1,2;3,4},C17,D17) -> 3 | C17: 2 | D17: 1
A18: LOOKUP (ref) | B18: =LOOKUP(C18,A10:A21) -> MATCH | C18: NIGGLER
A19: LOOKUP (arr) | B19: =LOOKUP(3,{1,2,2.5,4,5,6,7,8,9}) -> 2.5
A20: MATCH | B20: =MATCH(C20,A10:A21) -> 11 | C20: NIGGLER
A21: VLOOKUP | B21: =VLOOKUP(C21,A10:E21,D21) -> MATCH | C21: NIGGLER | D21: 1
A23: HYPERLINK | B23: =HYPERLINK("http://nig.gl","niggler") -> niggler
A25: Array Formula
A26: TRANSPOSE | B26: =TRANSPOSE(A2:A4) -> COLUMN | C26: ROW | D26: COLUMNS

Sheet Math
A1: 1 | B1: 2 | C1: 3 | D1: 4 | E1: 5 | F1: 6 | G1: 7 | H1: 8 | I1: 9 | J1: 10 | K1: 11
A2: ABS | B2: =ABS(B1) -> 2 | C2: 5 | D2: 6 | E2: 7 | F2: 8
A3: ACOS | B3: =ACOS(1/B1) -> 1.047197551
A4: ACOSH | B4: =ACOSH(B1) -> 1.316957897
A5: AGGREGATE | B5: =_xlfn.AGGREGATE(A1,B1,C1:K1) -> 7
A6: ASIN | B6: =ASIN(1/B1) -> 0.5235987756
A7: ASINH | B7: =ASINH(B1) -> 1.443635475
A8: ATAN | B8: =ATAN(B1) -> 1.107148718
A9: ATAN2 | B9: =ATAN2(A1,B1) -> 1.107148718
A10: ATANH | B10: =ATANH(1/B1) -> 0.5493061443
A11: CEILING | B11: =CEILING(B1,C1) -> 3
A12: CEILING.PRECISE | B12: =_xlfn.CEILING.PRECISE(B1,C1) -> 3
A13: COMBIN | B13: =COMBIN(D1,C1) -> 4
A14: COS | B14: =COS(B1) -> -0.4161468365
A15: COSH | B15: =COSH(B1) -> 3.762195691
A16: DEGREES | B16: =DEGREES(B1) -> 114.591559
A17: ECMA.CEILING | B17: =ECMA.CEILING(B2,2) -> 2 | F17: * not mentioned in summary
A18: EVEN | B18: =EVEN(B1) -> 2
A19: EXP | B19: =EXP(B1) -> 7.389056099
A20: FACT | B20: =FACT(B1) -> 2
A21: FACTDOUBLE | B21: =FACTDOUBLE(E1) -> 15 | F21: * originally in engineering
A22: FLOOR | B22: =FLOOR(B1,C1) -> 0
A23: FLOOR.PRECISE | B23: =_xlfn.FLOOR.PRECISE(B1,C1) -> 0
A24: GAMMALN | B24: =GAMMALN(C24) -> 3.17805383 | C24: 5 | F24: * originally in statistical
A25: GAMMALN.PRECISE | B25: =_xlfn.GAMMALN.PRECISE(C24) -> 3.17805383 | F25: * originally in statistical
A26: GCD | B26: =GCD(F1,J1) -> 2
A27: INT | B27: =INT(B1) -> 2
A28: ISO.CEILING | B28: =ISO.CEILING(F1) -> 6
A29: LCM | B29: =LCM(F1,I1) -> 18
A30: LN | B30: =LN(I1) -> 2.197224577
A31: LOG | B31: =LOG(J1) -> 1
A32: LOG10 | B32: =LOG10(E1) -> 0.6989700043
A33: MDETERM | B33: =MDETERM(C1:D2) -> -2
A34: MINVERSE | B34: =MINVERSE(C1:D2) -> -3
A35: MMULT | B35: =MMULT(C1:D2,E1:F2) -> 43
A36: MOD | B36: =MOD(E2,E1) -> 2
A37: MROUND | B37: =MROUND(C1,D1) -> 4
A38: MULTINOMIAL | B38: =MULTINOMIAL(J1,E1,C1) -> 2450448
A39: ODD | B39: =ODD(F1) -> 7
A40: PERMUT | B40: =PERMUT(F2,E1) -> 6720 | F40: * originally in statistical
A41: PI | B41: =PI() -> 3.141592654
A42: POWER | B42: =POWER(C1,D1) -> 81
A43: PRODUCT | B43: =PRODUCT(C1,D1,E1) -> 60
A44: QUOTIENT | B44: =QUOTIENT(E2,C1) -> 2
A45: RADIANS | B45: =RADIANS(E1) -> 0.0872664626
A46: RAND | B46: =RAND() -> 0.1610400235
A47: RANDBETWEEN | B47: =RANDBETWEEN(D1,E2) -> 5
A48: ROMAN | B48: =ROMAN(B1) -> II | C48: =ROMAN(B1,C1) -> II
A49: ROUND | B49: =ROUND(E1,D2) -> 5
A50: ROUNDDOWN | B50: =ROUNDDOWN(F1,H1) -> 6
A51: ROUNDUP | B51: =ROUNDUP(C1,B2) -> 3
A52: SERIESSUM | B52: =SERIESSUM(C1,C2,D2,D1:K1) -> 2.928421387e+23
A53: SIGN | B53: =SIGN(D2) -> 1
A54: SIN | B54: =SIN(E1) -> -0.9589242747
A55: SINH | B55: =SINH(D2) -> 201.7131574
A56: SQRT | B56: =SQRT(C1) -> 1.732050808
A57: SQRTPI | B57: =SQRTPI(B2) -> 2.506628275
A58: STANDARDIZE | B58: =STANDARDIZE(C58,D58,E58) -> 0.2 | C58: 3 | D58: 2 | E58: 5 | F58: * originally in statistical
A59: SUBTOTAL | B59: =SUBTOTAL(A1,B1,C1:K1) -> 6.5
A60: SUM | B60: =SUM(B1) -> 2 | C60: =SUM(B1:K1) -> 65 | D60: =SUM(B1:K1,B2:F2) -> 93
A61: SUMIF | B61: =SUMIF(C1:C2,">3") -> 5 | C61: =SUMIF(C1:C2,">3",D1:D2) -> 6
A62: SUMIFS | B62: =SUMIFS(C1:C2,D1:D2,">0",E1:E2,"<7") -> 3
A63: SUMPRODUCT | B63: =SUMPRODUCT(C1:K1) -> 63 | C63: =SUMPRODUCT(C1:F1,C2:F2) -> 122
A64: SUMSQ | B64: =SUMSQ(C1,D2) -> 45 | C64: =SUMSQ(D2,E1,F2) -> 125
A65: SUMX2MY2 | B65: =SUMX2MY2(C1:F1,C2:F2) -> -88
A66: SUMX2PY2 | B66: =SUMX2PY2(C1:F1,C2:F2) -> 260
A67: SUMXMY2 | B67: =SUMXMY2(C1:F1,C2:F2) -> 16
A68: TAN | B68: =TAN(C2) -> -3.380515006
A69: TANH | B69: =TANH(C1) -> 0.9950547537
A70: TRUNC | B70: =TRUNC(C1,F2) -> 3

Sheet Statistical
A1: Distributions
A2: BETA.DIST | B2: =_xlfn.BETA.DIST(C2,D2,E2,F2) -> 1.5 | C2: 0.5 | D2: 2 | E2: 2 | F2: FALSE
A3: BETA.INV | B3: =_xlfn.BETA.INV(C3,D3,E3) -> 0.5 | C3: 0.5 | D3: 2 | E3: 2
A4: BETADIST | B4: =BETADIST(C4,D4,E4) -> 0.5 | C4: 0.5 | D4: 2 | E4: 2
A5: BETAINV | B5: =BETAINV(C5,D5,E5) -> 0.5 | C5: 0.5 | D5: 2 | E5: 2
A6: BINOM.DIST | B6: =_xlfn.BINOM.DIST(C6,D6,E6,F6) -> 0.9526510126 | C6: 5 | D6: 10 | E6: 0.3 | F6: TRUE
A7: BINOM.INV | B7: =_xlfn.BINOM.INV(C7,D7,E7) -> 7 | C7: 20 | D7: 0.5 | E7: 0.1 | F7: TRUE
A8: BINOMDIST | B8: =BINOMDIST(C8,D8,E8,F8) -> 0.1029193452 | C8: 5 | D8: 10 | E8: 0.3 | F8: FALSE
A9: CHIDIST | B9: =CHIDIST(C9,D9) -> 0.6599632297 | C9: 5 | D9: 7
A10: CHIINV | B10: =CHIINV(B9,D9) -> 5
A11: CHISQ.DIST | B11: =_xlfn.CHISQ.DIST(C11,D11,E11) -> 0.3400367703 | C11: 5 | D11: 7 | E11: TRUE
A12: CHISQ.DIST.RT | B12: =_xlfn.CHISQ.DIST.RT(C11,D11) -> 0.6599632297
A13: CHISQ.INV | B13: =_xlfn.CHISQ.INV(B11,D11) -> 5
A14: CHISQ.INV.RT | B14: =_xlfn.CHISQ.INV.RT(B12,D11) -> 5
A15: CONFIDENCE | B15: =CONFIDENCE(C15,D15,E15) -> 0.1036433389 | C15: 0.3 | D15: 1 | E15: 100
A16: CONFIDENCE.NORM | B16: =_xlfn.CONFIDENCE.NORM(C16,D16,E16) -> 0.1036433389 | C16: 0.3 | D16: 1 | E16: 100
A17: CONFIDENCE.T | B17: =_xlfn.CONFIDENCE.T(C17,D17,E17) -> 0.1041890759 | C17: 0.3 | D17: 1 | E17: 100
A18: CRITBINOM | B18: =CRITBINOM(C18,D18,E18) -> 64 | C18: 120 | D18: 0.5 | E18: 0.75
A19: EXPON.DIST | B19: =_xlfn.EXPON.DIST(C19,D19,E19) -> 0.8646647168 | C19: 1 | D19: 2 | E19: TRUE
A20: EXPONDIST | B20: =EXPONDIST(C20,D20,E20) -> 0.2706705665 | C20: 1 | D20: 2 | E20: FALSE
A21: F.DIST | B21: =_xlfn.F.DIST(C21,D21,E21,F21) -> 0.5352419985 | C21: 1 | D21: 2 | E21: 3 | F21: TRUE
A22: F.DIST.RT | B22: =_xlfn.F.DIST.RT(C21,D21,E21) -> 0.4647580015
A23: F.INV | B23: =_xlfn.F.INV(B21,D21,E21) -> 1
A24: F.INV.RT | B24: =_xlfn.F.INV.RT(B22,D21,E21) -> 1
A25: FDIST | B25: =FDIST(C25,D25,E25) -> 0.173553719 | C25: 5 | D25: 4 | E25: 2
A26: FINV | B26: =FINV(B25,D25,E25) -> 5
A27: FISHER | B27: =FISHER(C27) -> 0.5493061443 | C27: 0.5
A28: FISHERINV | B28: =FISHERINV(B27) -> 0.5
A29: GAMMA.DIST | B29: =_xlfn.GAMMA.DIST(C29,D29,E29,F29) -> 0.3849400111 | C29: 4 | D29: 2 | E29: 3 | F29: TRUE
A30: GAMMA.INV | B30: =_xlfn.GAMMA.INV(B29,D29,E29) -> 4
A31: GAMMADIST | B31: =GAMMADIST(C29,D29,E29,F29) -> 0.3849400111
A32: GAMMAINV | B32: =GAMMAINV(B31,D29,E29) -> 4
A33: HYPGEOM.DIST | B33: =_xlfn.HYPGEOM.DIST(C33,D33,E33,F33,G33) -> 0.4166666667 | C33: 1 | D33: 2 | E33: 7 | F33: 9 | G33: 5
A34: HYPGEOMDIST | B34: =HYPGEOMDIST(C34,D34,E34,F34) -> 0.5357142857 | C34: 2 | D34: 3 | E34: 6 | F34: 8
A35: LOGINV | B35: =LOGINV(C35,D35,E35) -> 148.4131591 | C35: 0.5 | D35: 5 | E35: 5
A36: LOGNORM.DIST | B36: =_xlfn.LOGNORM.DIST(C36,D36,E36,F36) -> 0.3445782584 | C36: 1 | D36: 2 | E36: 5 | F36: TRUE
A37: LOGNORM.INV | B37: =_xlfn.LOGNORM.INV(B36,D36,E36) -> 1
A38: LOGNORMDIST | B38: =LOGNORMDIST(C36,D36,E36) -> 0.3445782584
A39: NEGBINOM.DIST | B39: =_xlfn.NEGBINOM.DIST(C39,D39,E39,F39) -> 0.03860084306 | C39: 5 | D39: 7 | E39: 0.3 | F39: TRUE
A40: NEGBINOMDIST | B40: =NEGBINOMDIST(C39,D39,E39) -> 0.01698169196 | C40: 5 | D40: 7 | E40: 0.3
A41: NORM.DIST | B41: =_xlfn.NORM.DIST(C41,D41,E41,F41) -> 0.6305586598 | C41: 0 | D41: -1 | E41: 3 | F41: TRUE
A42: NORM.INV | B42: =_xlfn.NORM.INV(B41,D41,E41) -> 8.881784197e-16
A43: NORM.S.DIST | B43: =_xlfn.NORM.S.DIST(C43,D43) -> 0.998650102 | C43: 3 | D43: TRUE
A44: NORM.S.INV | B44: =_xlfn.NORM.S.INV(B43) -> 3
A45: NORMDIST | B45: =NORMDIST(C41,D41,E41,F41) -> 0.6305586598
A46: NORMINV | B46: =NORMINV(B45,D41,E41) -> 8.881784197e-16
A47: NORMSDIST | B47: =NORMSDIST(C47) -> 0.9772498681 | C47: 2
A48: NORMSINV | B48: =NORMSINV(B47) -> 2
A49: POISSON | B49: =POISSON(C49,D49,E49) -> 0.4060058497 | C49: 1 | D49: 2 | E49: TRUE
A50: POISSON.DIST | B50: =_xlfn.POISSON.DIST(C50,D50,E50) -> 0.2706705665 | C50: 1 | D50: 2 | E50: FALSE
A51: T.DIST | B51: =_xlfn.T.DIST(C51,D51,E51) -> 0.9900289369 | C51: 3 | D51: 7 | E51: TRUE
A52: T.DIST.2T | B52: =_xlfn.T.DIST.2T(C51,D51) -> 0.01994212613
A53: T.DIST.RT | B53: =_xlfn.T.DIST.RT(C51,D51) -> 0.009971063066
A54: T.INV | B54: =_xlfn.T.INV(B51,D51) -> 3
A55: T.INV.2T | B55: =_xlfn.T.INV.2T(B52,D51) -> 3
A56: TDIST | B56: =TDIST(C56,D56,E56) -> 0.01994212613 | C56: 3 | D56: 7 | E56: 2
A57: TINV | B57: =TINV(B56,D56) -> 3
A58: WEIBULL | B58: =WEIBULL(C58,D58,E58,F58) -> 0.2211992169 | C58: 0.5 | D58: 2 | E58: 1 | F58: TRUE
A59: WEIBULL.DIST | B59: =_xlfn.WEIBULL.DIST(C59,D59,E59,F59) -> 0.7788007831 | C59: 0.5 | D59: 2 | E59: 1 | F59: FALSE
A61: Descriptive Statistics
A62: AVEDEV | B62: =AVEDEV(C62:I62,J62,ROW(B62)) -> 31.78125 | C62: 1 | D62: 2 | E62: 4 | F62: 8 | G62: 16 | H62: 32 | I62: TRUE | J62: 128
A63: AVERAGE | B63: =AVERAGE(C63:I63,J63,ROW(B63)) -> 31.75 | C63: 1 | D63: 2 | E63: 4 | F63: 8 | G63: 16 | H63: 32 | I63: TRUE | J63: 128
A64: AVERAGEA | B64: =AVERAGEA(C64:I64,J64,ROW(B64)) -> 28.44444444 | C64: 1 | D64: 2 | E64: 4 | F64: 8 | G64: 16 | H64: 32 | I64: TRUE | J64: 128
A65: AVERAGEIF | B65: =AVERAGEIF(C65:I65,J65) -> 3.75 | C65: 1 | D65: 2 | E65: 4 | F65: 8 | G65: 16 | H65: 32 | I65: TRUE | J65: <10
A66: AVERAGEIFS | B66: =AVERAGEIFS(C66:I66,C66:I66,">3",C66:I66,"<20") -> 9.333333333 | C66: 1 | D66: 2 | E66: 4 | F66: 8 | G66: 16 | H66: 32 | I66: TRUE | J66: <10
A67: CORREL | B67: =CORREL({2,1,3,4,7,11},C67:H67) -> 0.9862413826 | C67: 1 | D67: 2 | E67: 3 | F67: 5 | G67: 8 | H67: 13
A68: COUNT | B68: =COUNT(C68:J68) -> 6 | C68: 1 | D68: 2 | E68: 4 | F68: 8 | G68: 16 | H68: 32 | I68: TRUE
A69: COUNTA | B69: =COUNTA(C69:J69) -> 7 | C69: 1 | D69: 2 | E69: 4 | F69: 8 | G69: 16 | H69: 32 | I69: TRUE
A70: COUNTBLANK | B70: =COUNTBLANK(C70:J70) -> 1 | C70: 1 | D70: 2 | E70: 4 | F70: 8 | G70: 16 | H70: 32 | I70: TRUE
A71: COUNTIF | B71: =COUNTIF(C71:I71,J71) -> 2 | C71: 1 | D71: 2 | E71: 4 | F71: 8 | G71: 16 | H71: 32 | I71: TRUE | J71: >10
A72: COUNTIFS | B72: =COUNTIFS(C72:I72,J72,C72:I72,J71) -> 1 | C72: 1 | D72: 2 | E72: 4 | F72: 8 | G72: 16 | H72: 32 | I72: TRUE | J72: <30
A73: COVAR | B73: =COVAR(C73:H73,C74:H74) -> 36.33333333 | C73: 1 | D73: 2 | E73: 4 | F73: 8 | G73: 16 | H73: 32 | I73: TRUE
A74: COVARIANCE.P | B74: =_xlfn.COVARIANCE.P(C73:H73,C74:H74) -> 36.33333333 | C74: 2 | D74: 1 | E74: 3 | F74: 4 | G74: 7 | H74: 11 | I74: 18
A75: COVARIANCE.S | B75: =_xlfn.COVARIANCE.S(C73:H73,C74:H74) -> 43.6
A76: DEVSQ | B76: =DEVSQ(C76:I76) -> 703.5 | C76: 1 | D76: 2 | E76: 4 | F76: 8 | G76: 16 | H76: 32 | I76: TRUE
A77: GEOMEAN | B77: =GEOMEAN(C77:I77) -> 5.656854249 | C77: 1 | D77: 2 | E77: 4 | F77: 8 | G77: 16 | H77: 32 | I77: TRUE
A78: HARMEAN | B78: =HARMEAN(C78:I78) -> 3.047619048 | C78: 1 | D78: 2 | E78: 4 | F78: 8 | G78: 16 | H78: 32 | I78: TRUE
A79: KURT | B79: =KURT(C79:I79) -> 1.87495359 | C79: 1 | D79: 2 | E79: 4 | F79: 8 | G79: 16 | H79: 32 | I79: TRUE
A80: LARGE | B80: =LARGE(C80:H80,I80) -> 8 | C80: 1 | D80: 2 | E80: 4 | F80: 8 | G80: 16 | H80: 32 | I80: 3
A81: MAX | B81: =MAX(C81:H81,I81) -> 32 | C81: 1 | D81: 2 | E81: 4 | F81: 8 | G81: 16 | H81: 32 | I81: 3
A82: MAXA | B82: =MAXA(C82:H82,I82) -> 32 | C82: 1 | D82: 2 | E82: 4 | F82: 8 | G82: 16 | H82: 32 | I82: 3
A83: MEDIAN | B83: =MEDIAN(C83:I83) -> 4 | C83: 1 | D83: 2 | E83: 4 | F83: 8 | G83: 16 | H83: 32 | I83: 3
A84: MIN | B84: =MIN(C84:I84) -> 1 | C84: 1 | D84: 2 | E84: 4 | F84: 8 | G84: 16 | H84: 32 | I84: 3
A85: MINA | B85: =MINA(C85:I85) -> 1 | C85: 1 | D85: 2 | E85: 4 | F85: 8 | G85: 16 | H85: 32 | I85: 3
A86: MODE | B86: =MODE(C86:I86) -> 16 | C86: 1 | D86: 2 | E86: 4 | F86: 8 | G86: 16 | H86: 16 | I86: 3
A87: MODE.MULT | B87: =_xlfn.MODE.MULT(C87:I87) -> 8 | C87: 1 | D87: 2 | E87: 4 | F87: 8 | G87: 8 | H87: 32 | I87: 3
A88: MODE.SNGL | B88: =_xlfn.MODE.SNGL(1,2,3,4,3,2,1,2,1,2,2) -> 2
A89: PERCENTILE | B89: =PERCENTILE(C89:H89,I89) -> 3 | C89: 1 | D89: 2 | E89: 4 | F89: 8 | G89: 16 | H89: 32 | I89: 0.3
A90: PERCENTILE.EXC | B90: =_xlfn.PERCENTILE.EXC(C90:H90,I90) -> 6 | C90: 1 | D90: 2 | E90: 4 | F90: 8 | G90: 16 | H90: 32 | I90: 0.5
A91: PERCENTILE.INC | B91: =_xlfn.PERCENTILE.INC(C91:H91,I91) -> 12 | C91: 1 | D91: 2 | E91: 4 | F91: 8 | G91: 16 | H91: 32 | I91: 0.7
A92: PERCENTRANK | B92: =PERCENTRANK(C92:H92,I92) -> 0.65 | C92: 1 | D92: 2 | E92: 4 | F92: 8 | G92: 16 | H92: 32 | I92: 10
A93: PERCENTRANK.EXC | B93: =_xlfn.PERCENTRANK.EXC(C93:H93,I93) -> 0.75 | C93: 1 | D93: 2 | E93: 4 | F93: 8 | G93: 16 | H93: 32 | I93: 20
A94: PERCENTRANK.INC | B94: =_xlfn.PERCENTRANK.INC(C94:H94,I94) -> 0.975 | C94: 1 | D94: 2 | E94: 4 | F94: 8 | G94: 16 | H94: 32 | I94: 30
A95: QUARTILE | B95: =QUARTILE(C95:H95,I95) -> 14 | C95: 1 | D95: 2 | E95: 4 | F95: 8 | G95: 16 | H95: 32 | I95: 3
A96: QUARTILE.EXC | B96: =_xlfn.QUARTILE.EXC(C96:H96,I96) -> 6 | C96: 1 | D96: 2 | E96: 4 | F96: 8 | G96: 16 | H96: 32 | I96: 2
A97: QUARTILE.INC | B97: =_xlfn.QUARTILE.INC(C97:H97,I97) -> 2.5 | C97: 1 | D97: 2 | E97: 4 | F97: 8 | G97: 16 | H97: 32 | I97: 1
A98: RANK | B98: =RANK(4,C98:H98) -> 4 | C98: 1 | D98: 2 | E98: 4 | F98: 8 | G98: 16 | H98: 32 | I98: RANK(2,{4,6,8,7,5,3,1,2},2)
A99: RANK.AVG | B99: =_xlfn.RANK.AVG(4,C99:H99) -> 4 | C99: 1 | D99: 2 | E99: 4 | F99: 8 | G99: 16 | H99: 32 | I99: * note that the docs say you can specify an array
A100: RANK.EQ | B100: =_xlfn.RANK.EQ(4,C100:H100) -> 4 | C100: 1 | D100: 2 | E100: 4 | F100: 8 | G100: 16 | H100: 32 | I100: * but it appears that excel 2011 falters on those
A101: SKEW | B101: =SKEW(C101:H101) -> 1.499692958 | C101: 1 | D101: 2 | E101: 4 | F101: 8 | G101: 16 | H101: 32
A102: SMALL | B102: =SMALL(C102:H102,I102) -> 4 | C102: 1 | D102: 2 | E102: 4 | F102: 8 | G102: 16 | H102: 32 | I102: 3
A103: STDEV | B103: =STDEV(C103:H103,I103) -> 13.09852773 | C103: 1 | D103: 2 | E103: 4 | F103: 8 | G103: 16 | H103: 32 | I103: 30
A104: STDEV.P | B104: =_xlfn.STDEV.P(C104:H104,I104) -> 12.12688025 | C104: 1 | D104: 2 | E104: 4 | F104: 8 | G104: 16 | H104: 32 | I104: 30
A105: STDEV.S | B105: =_xlfn.STDEV.S(C105:H105,I105) -> 13.09852773 | C105: 1 | D105: 2 | E105: 4 | F105: 8 | G105: 16 | H105: 32 | I105: 30
A106: STDEVA | B106: =STDEVA(C106:H106,I106) -> 13.09852773 | C106: 1 | D106: 2 | E106: 4 | F106: 8 | G106: 16 | H106: 32 | I106: 30
A107: STDEVP | B107: =STDEVP(C107:H107,I107) -> 12.12688025 | C107: 1 | D107: 2 | E107: 4 | F107: 8 | G107: 16 | H107: 32 | I107: 30
A108: STDEVPA | B108: =STDEVPA(C108:H108,I108) -> 12.12688025 | C108: 1 | D108: 2 | E108: 4 | F108: 8 | G108: 16 | H108: 32 | I108: 30
A109: TRIMMEAN
A110: VAR | B110: =VAR(C110:H110,I110) -> 171.5714286 | C110: 1 | D110: 2 | E110: 4 | F110: 8 | G110: 16 | H110: 32 | I110: 30
A111: VAR.P | B111: =_xlfn.VAR.P(C111:H111,I111) -> 147.0612245 | C111: 1 | D111: 2 | E111: 4 | F111: 8 | G111: 16 | H111: 32 | I111: 30
A112: VAR.S | B112: =_xlfn.VAR.S(C112:H112,I112) -> 171.5714286 | C112: 1 | D112: 2 | E112: 4 | F112: 8 | G112: 16 | H112: 32 | I112: 30
A113: VARA | B113: =VARA(C113:H113,I113) -> 171.5714286 | C113: 1 | D113: 2 | E113: 4 | F113: 8 | G113: 16 | H113: 32 | I113: 30
A114: VARP | B114: =VARP(C114:H114,I114) -> 147.0612245 | C114: 1 | D114: 2 | E114: 4 | F114: 8 | G114: 16 | H114: 32 | I114: 30
A115: VARPA | B115: =VARPA(C115:H115,I115) -> 147.0612245 | C115: 1 | D115: 2 | E115: 4 | F115: 8 | G115: 16 | H115: 32 | I115: 30
A117: Statistical Tests
A118: CHISQ.TEST | B118: =_xlfn.CHISQ.TEST(D118:I118,D119:I119) -> 0.7664919367 | D118: 1 | E118: 2 | F118: 3 | G118: 4 | H118: 5 | I118: 6
A119: CHITEST | B119: =CHITEST(D119:I119,D118:I118) -> 0.5518180407 | D119: 1.1 | E119: 2.2 | F119: 3.1 | G119: 7 | H119: 4 | I119: 9
A120: F.TEST | B120: =_xlfn.F.TEST(D118:I118,D119:I119) -> 0.3177442387
A121: FTEST | B121: =FTEST(D119:I119,D118:I118) -> 0.3177442387
A122: T.TEST | B122: =_xlfn.T.TEST(D118:I118,D119:I119,C122,D122) -> 0.5511334569 | C122: 2 | D122: 3
A123: TTEST | B123: =TTEST(D118:I118,D119:I119,C122,D122) -> 0.5511334569
A124: Z.TEST | B124: =_xlfn.Z.TEST(D124:I124,C124) -> 0.3907556475 | C124: 3 | D124: 1 | E124: 2 | F124: 3 | G124: 4 | H124: 5 | I124: 4
A125: ZTEST | B125: =ZTEST(D124:I124,C124,C125) -> 0.4674626558 | C125: 5
A127: Regression and Friends
A128: FORECAST | B128: =FORECAST(C128,D129:I129,D128:I128) -> 19.62857143 | C128: 10 | D128: 1 | E128: 2 | F128: 3 | G128: 4 | H128: 5 | I128: 6
A129: FREQUENCY | B129: =FREQUENCY(D128:I128,D129:I129) -> 2 | D129: 2 | E129: 4 | F129: 6 | G129: 8 | H129: 11 | I129: 11
A130: GROWTH | B130: =GROWTH(D129:I129,D128:I128) -> 2.572590159 | D130: 0.1 | E130: 0.1 | F130: 0.2 | G130: 0.2 | H130: 0.2 | I130: 0.2
A131: INTERCEPT | B131: =INTERCEPT(D129:I129,D128:I128) -> 0.2
A132: PROB | B132: =PROB(D128:I128,D130:I130,C132,D132) -> 0.4 | C132: 2.1 | D132: 4.5
A133: PEARSON | B133: =PEARSON(D118:I118,D119:I119) -> 0.8646992926
A134: RSQ | B134: =RSQ(D129:I129,D128:I128) -> 0.9714285714
A135: SLOPE | B135: =SLOPE(D129:I129,D128:I128) -> 1.942857143
A136: STEYX | B136: =STEYX(D129:I129,D128:I128) -> 0.6969320524
D137: LINEST (n+1 by 5) | H137: LOGEST (n+1 by 5)
A138: LINEST | B138: =LINEST(D129:I129,D128:I128) -> 1.942857143 | D138: =LINEST(D129:I129,D128:I128,TRUE,TRUE) -> 1.942857143 | E138: 0.2 | H138: =LOGEST(D129:I129,D128:I128,TRUE,TRUE) -> 1.402790657 | I138: 1.83390882
A139: LOGEST | B139: =LOGEST(D129:I129,D128:I128) -> 1.402790657 | D139: 0.1665986256 | E139: 0.6488084316 | H139: 0.05129082046 | I139: 0.1997490475
A140: TREND | B140: =TREND(D129:I129,D128:I128) -> 2.142857143 | D140: 0.9714285714 | E140: 0.6969320524 | H140: 0.915870294 | I140: 0.214564896
D141: 136 | E141: 4 | H141: 43.54563148 | I141: 4
D142: 66.05714286 | E142: 1.942857143 | H142: 2.004757902 | I142: 0.1841523784
A144: TREND | D144: =TREND(D129:I129,D128:I128) -> 2.142857143 | E144: 4.085714286 | F144: 6.028571429 | G144: 7.971428571 | H144: 9.914285714 | I144: 11.85714286

Sheet Text
A1: Operators
A2: CONCATENATE | B2: =CONCATENATE(C2,D2,E2,F2) -> Foobarbazqux | C2: Foo | D2: bar | E2: baz | F2: qux
A3: EXACT | B3: =EXACT(C3,D3) -> FALSE | C3: foo | D3: Foo
A4: LEN | B4: =LEN(C4) -> 15 | C4: foo bar baz qux
A5: LENB | B5: =LENB(C4) -> 15
A7: Casing
A8: LOWER | B8: =LOWER(C8) -> foo bar baz qux | C8: foo bAR BAZ Qux
A9: PROPER | B9: =PROPER(C9) -> Foo Bar Baz Qux | C9: foo bAR BAZ Qux
A10: UPPER | B10: =UPPER(C10) -> FOO BAR BAZ QUX | C10: foo bAR BAZ Qux
A12: Formatting
A13: DOLLAR | B13: =DOLLAR(C13) -> $4.57 | C13: 4.567
A14: FIXED | B14: =FIXED(C14,5) -> 0.12346 | C14: 0.12345679
A15: TEXT | B15: =TEXT(C15,D15) -> 1977-07-07 | C15: 1977-07-07 | D15: ee-mm-dd
A16: T | B16: =T(C16) ->  | C16: FALSE
A17: VALUE | B17: =VALUE(C17) -> 12 | C17: 12
A19: Codepoints
A20: CHAR | B20: =CHAR(C20) ->  | C20: 240
A21: CODE | B21: =CODE(C21) -> 240 | C21: 
A23: Extracting Text
A24: LEFT | B24: =LEFT(C24,D24) -> foo | C24: foo bar baz qux | D24: 3
A25: LEFTB | B25: =LEFTB(C24,D24) -> foo
A26: MID | B26: =MID(C26,D26,E26) -> bar | C26: foo bar baz qux | D26: 5 | E26: 3
A27: MIDB | B27: =MIDB(C27,D27,E27) -> baz | C27: foo bar baz qux | D27: 9 | E27: 3
A28: RIGHT | B28: =RIGHT(C24,D24) -> qux
A29: RIGHTB | B29: =RIGHT(C24,D24) -> qux
A31: Searching
A32: FIND | B32: =FIND(C32,D32) -> 9 | C32: b | D32: foo Bar baz qux
A33: FINDB | B33: =FINDB(C32,D32) -> 9
A34: SEARCH | B34: =SEARCH(C32,D32) -> 5
A35: SEARCHB | B35: =SEARCHB(C32,D32) -> 5
A37: Manipulating Text | B37: =REPT("badger ",12)&REPT("MUSHROOM! ",2) -> badger badger badger badger badger badger badger badger badger badger badger badger MUSHROOM! MUSHROOM!
A38: CLEAN | B38: =CLEAN(C38) -> 7 | C38: =CHAR(7)&"7"&CHAR(7) -> 7
A39: REPT | B39: =REPT(C39,D39) -> badgerbadgerbadger | C39: badger | D39: 3
A40: REPLACE | B40: =REPLACE(C40,D40,E40,F40) -> foo FOO baz qux | C40: foo bar baz qux | D40: 4 | E40: 4 | F40: FOO
A41: REPLACEB | B41: =REPLACEB(C40,D40,E40,F40) -> foo FOO baz qux
A42: SUBSTITUTE | B42: =SUBSTITUTE(C42,D42,E42,F42) -> foo bor baz qux | C42: foo bar baz qux | D42: a | E42: o | F42: 1
A43: TRIM | B43: =TRIM(C43) -> there are two spaces here | C43: there are two spaces here
A45: Asian Features
A46: ASC | B46: =ASC(C46) -> 
A47: PHONETIC | B47: =PHONETIC(C47) ->  | C47: foo bar baz qux
A48: JIS | B48: =JIS(C48) -> 
A49: YEN | B49: =YEN(C49) ->  | C49: 5
